fUST/lending_fUST_20240818
["ID","MTS","AMOUNT","RATE_DAILY","PERIOD"]
[335181229,1723941040989,-731.34,0.0002297,2]
[335181230,1723941040998,-500.0,0.0002297,2]
[335181231,1723941041008,-500.0,0.0002297,2]
[335181232,1723941041018,-500.0,0.0002297,2]
[335181233,1723941041029,-500.0,0.0002297,2]
[335181234,1723941041038,-500.0,0.0002297,2]
[335181235,1723941041047,-500.0,0.0002297,2]
[335181236,1723941041057,-500.0,0.0002297,2]
[335181237,1723941041067,-500.0,0.0002297,2]
[335181238,1723941041076,-500.0,0.0002297,2]
[335181239,1723941041085,-533.41359125,0.0002297,2]
[335181240,1723941041095,-500.0,0.0002297,2]
[335181241,1723941041104,-500.0,0.0002297,2]
[335181242,1723941041114,-500.0,0.0002297,2]
[335181243,1723941041124,-551.19,0.0002297,2]
[335181244,1723941041133,-767.54,0.0002297,2]
[335181245,1723941041231,-500.0,0.0002297,2]
[335181246,1723941041241,-760.16,0.0002297,2]
[335181247,1723941041249,-500.0,0.0002297,2]
[335181248,1723941041259,-500.0,0.0002297,2]
[335181249,1723941041269,-500.0,0.0002297,2]
[335181250,1723941041278,-500.0,0.0002297,2]
[335181251,1723941041287,-500.0,0.0002297,2]
[335181252,1723941041297,-507.07,0.0002297,2]
[335181253,1723941041306,-623.76,0.0002297,2]
[335181254,1723941041316,-500.0,0.0002297,2]
[335181255,1723941041325,-524.43,0.0002297,2]
[335181256,1723941041334,-1266.84,0.0002297,2]
[335181257,1723941041343,-992.84,0.0002297,2]
[335181258,1723941041352,-500.0,0.0002297,2]
[335181259,1723941041361,-500.0,0.0002297,2]
[335181260,1723941041371,-500.0,0.0002297,2]
[335181261,1723941041380,-687.71,0.0002297,2]
[335181262,1723941041389,-500.0,0.0002297,2]
[335181263,1723941041399,-500.0,0.0002297,2]
[335181264,1723941041408,-677.96,0.0002297,2]
[335181265,1723941041418,-8336.52,0.0002297,2]
[335181266,1723941041427,-500.0,0.0002297,2]
[335181267,1723941041436,-613.95,0.0002297,2]
[335181268,1723941041445,-2968.89,0.0002297,2]
[335181269,1723941041455,-1348.82,0.0002297,2]
[335181270,1723941041465,-906.5,0.0002297,2]
[335181271,1723941041474,-500.0,0.0002297,2]
[335181272,1723941041484,-844.6,0.0002297,2]
[335181273,1723941041503,-2000.42,0.0002297,2]
[335181274,1723941041519,-2163.52,0.0002297,2]
[335181275,1723941041529,-2075.03,0.0002297,2]
[335181276,1723941041538,-500.0,0.0002297,2]
[335181277,1723941041548,-500.0,0.0002297,2]
[335181278,1723941041557,-507.93815171,0.0002297,2]
[335181279,1723941041566,-500.0,0.0002297,2]
[335181280,1723941041575,-926.37,0.0002297,2]
[335181281,1723941041585,-500.0,0.0002297,2]
[335181282,1723941041594,-500.0,0.0002297,2]
[335181283,1723941041604,-519.22770271,0.0002297,2]
[335181284,1723941041613,-192.71,0.0002299,120]
[335181285,1723941041622,-10029.79304035,0.00022999,2]
[335181286,1723941041642,-500.0,0.00022696,2]
[335181287,1723941041650,-632.3872544,0.00022999,2]
[335181288,1723941042485,-500.0,0.00022422,2]
[335181289,1723941042495,-500.0,0.00022696,2]
[335181290,1723941042506,-185.44502279,0.0002297,2]
[335181291,1723941042525,-314.55497721,0.0002297,2]
[335181292,1723941042537,-500.0,0.0002297,2]
[335181293,1723941042548,-4712.34673051,0.00022999,2]
[335181323,1723941043615,-9.95119656,0.00022999,2]
[335181369,1723941086607,34.00606274,0.00014247,2]
[335181370,1723941086630,126.59374726,0.00014247,2]
[335181372,1723941115476,118.40625274,0.00014519,2]
[335181373,1723941115508,237.1844789,0.00014519,2]
[335181376,1723941115674,969.65051257,0.00014519,2]
[335181377,1723941119054,2281.22061085,0.00014519,3]
[335181378,1723941123744,305.15937094,0.00014519,2]
[335181379,1723941127001,260.30171129,0.00014519,2]
[335181380,1723941127823,271.48343817,0.00014519,2]
[335181381,1723941132718,242.02497847,0.00015001,2]
[335181383,1723941225281,2281.22061085,0.00014519,3]
[335181384,1723941279494,999.03147275,0.00014519,2]
[335181385,1723941295640,155.06130741,0.00014519,2]
[335181386,1723941297287,817.7282469,0.00014519,2]
[335181387,1723941298473,343.39599935,0.00014519,2]
[335181388,1723941299315,494.54531599,0.00014519,2]
[335181389,1723941299553,267.39548537,0.00014519,2]
[335181390,1723941300462,20784.67491515,0.00013971,2]
[335181391,1723941306998,493.12601984,0.00014519,2]
[335181392,1723941308350,526.47172859,0.00014519,2]
[335181393,1723941318349,688.52759508,0.00014519,2]
[335181400,1723941593383,9657.16610995,0.00014245,2]
[335181401,1723941618298,14534.88315128,0.00014245,2]
[335181402,1723941626183,238.892248,0.00014247,2]
[335181403,1723941633278,154.87928064,0.00014519,2]
[335181404,1723941640487,42403.15579673,0.00014245,2]
[335181405,1723941645581,154.94299491,0.00014519,2]
[335181406,1723941647424,2165.20291982,0.00014519,2]
[335181408,1723941656013,493.12601984,0.00014519,2]
[335181409,1723941660379,630.97449815,0.00014519,2]
[335181410,1723941660663,543.08033697,0.00014519,2]
[335181411,1723941661432,154.69833824,0.00014519,2]
[335181412,1723941661638,157.04728598,0.00014519,2]
[335181413,1723941669254,600.8534117,0.00014519,2]
[335181414,1723941670346,506.48190828,0.00014519,2]
[335181415,1723941677114,3131.31783726,0.00014245,2]
[335181416,1723941682298,500.0,0.00014519,2]
[335181417,1723941692758,301.46890977,0.00014519,2]
[335181418,1723941693276,319.72766707,0.00014519,2]
[335181419,1723941693410,9657.16610995,0.00014519,2]
[335181420,1723941701807,1612.67783737,0.00014519,2]
[335181421,1723941703563,2617.67290406,0.00014519,2]
[335181422,1723941716375,1866.79621488,0.00014519,2]
[335181423,1723941734582,17937.91920429,0.00013971,2]
[335181424,1723941734631,1670.92226544,0.00014519,2]
[335181425,1723941737071,282.74733365,0.00014519,2]
[335181426,1723941739495,6963.29210635,0.00014245,2]
[335181427,1723941741287,2124.8772303,0.00014519,2]
[335181428,1723941742302,26122.82890986,0.00013971,2]
[335181429,1723941751482,154.69833824,0.00014519,2]
[335181430,1723941758069,898.48245791,0.00014519,2]
[335181431,1723941765815,1500.0,0.00014519,2]
[335181432,1723941766490,154.69833824,0.00014519,2]
[335181433,1723941773068,898.48245791,0.00014519,2]
[335181434,1723941774217,374.44841674,0.00014519,2]
[335181439,1723942031159,-420.62670068,0.00017065,2]
[335181440,1723942031181,-191.95034667,0.00017165,2]
[335181441,1723942031202,-306.86322179,0.00017497,2]
[335181442,1723942033136,-643.25523075,0.00017497,2]
[335181443,1723942034127,-177.17039123,0.00017497,2]
[335181444,1723942037113,-1811.20650514,0.00017497,2]
[335181445,1723942048137,-1134.36693424,0.00017497,2]
[335181446,1723942048158,-240.74853049,0.00017598,2]
[335181447,1723942048180,-1256.01364847,0.00017598,2]
[335181448,1723942048202,-250.0,0.00018439,2]
[335181449,1723942048225,-250.0,0.00018489,2]
[335181450,1723942048246,-50.6342284,0.0001854,2]
[335181451,1723942052129,-199.3657716,0.0001854,2]
[335181452,1723942052152,-114.54573912,0.00018555,2]
[335181457,1723942076423,158.879125,0.00014247,2]
[335181458,1723942169115,-413.91779774,0.00018252,2]
[335181491,1723942231708,-761.07951526,0.00018252,2]
[335181493,1723942231718,-300.0,0.00018299,2]
[335181495,1723942231727,-279.81736611,0.00018299,2]
[335181559,1723942237643,-556.62647563,0.00018299,2]
[335181560,1723942237652,-20.18263389,0.00018299,2]
[335181561,1723942237661,-24900.0,0.000183,2]
[335181562,1723942237671,-327.22126198,0.00018555,2]
[335181563,1723942237680,-7589.8643027,0.00018568,2]
[335181564,1723942237689,-250.0,0.0001859,2]
[335181565,1723942237699,-662.854124,0.00018619,2]
[335181566,1723942237709,-250.0,0.00018641,2]
[335181567,1723942237718,-250.0,0.00018692,2]
[335181568,1723942237728,-250.0,0.00018742,2]
[335181569,1723942237738,-250.0,0.00018793,2]
[335181570,1723942237747,-250.0,0.00018843,2]
[335181571,1723942237756,-250.0,0.00018894,2]
[335181572,1723942237765,-250.0,0.00018944,2]
[335181573,1723942237775,-250.0,0.00018995,2]
[335181574,1723942237785,-250.0,0.00019046,2]
[335181575,1723942237795,-250.0,0.00019096,2]
[335181576,1723942237805,-250.0,0.00019147,2]
[335181577,1723942237814,-500.0,0.00019178,2]
[335181578,1723942237824,-500.0,0.00019178,2]
[335181579,1723942237833,-500.0,0.00019178,2]
[335181580,1723942237843,-500.0,0.00019178,2]
[335181581,1723942237852,-500.0,0.00019178,2]
[335181582,1723942237861,-500.0,0.00019178,2]
[335181583,1723942237870,-500.0,0.00019178,2]
[335181584,1723942237879,-191.50698682,0.00019178,2]
[335181585,1723942237889,-250.0,0.00019197,2]
[335181586,1723942237898,-250.0,0.00019248,2]
[335181587,1723942237907,-250.0,0.00019298,2]
[335181588,1723942237916,-250.0,0.00019349,2]
[335181589,1723942237925,-250.0,0.000194,2]
[335181590,1723942237935,-2791.70270302,0.00019445,2]
[335181591,1723942237944,-3624.5676182,0.00019545,2]
[335181592,1723942237953,-420.0,0.0001996,2]
[335181593,1723942237962,-420.0,0.00020129,2]
[335181594,1723942237972,-615.32406675,0.00020463,2]
[335181595,1723942237982,-238.892248,0.00020707,2]
[335181596,1723942237991,-473.07502135,0.00020871,2]
[335181597,1723942238001,-2791.70270296,0.00021653,2]
[335181598,1723942238010,-587.0,0.00021772,2]
[335181599,1723942238019,-12498.73626123,0.00021817,2]
[335181600,1723942238028,-500.0,0.00021905,2]
[335181601,1723942238038,-500.0,0.00021905,2]
[335181602,1723942238047,-517.12324288,0.00021905,2]
[335181603,1723942238056,-500.0,0.00021905,2]
[335181604,1723942238065,-500.0,0.00021905,2]
[335181605,1723942238074,-34999.8106602,0.00021907,3]
[335181606,1723942238083,-769.17,0.00021907,3]
[335181607,1723942238093,-384.58,0.00021907,3]
[335181608,1723942238102,-192.29,0.00021907,3]
[335181609,1723942238111,-500.0,0.00021917,2]
[335181610,1723942238120,-500.0,0.00021917,2]
[335181611,1723942238129,-500.0,0.00021917,2]
[335181612,1723942238138,-538.80347896,0.00021917,2]
[335181613,1723942238148,-500.0,0.00021917,2]
[335181614,1723942238158,-500.0,0.00021917,2]
[335181615,1723942238167,-507.60752672,0.00021917,2]
[335181616,1723942238176,-500.0,0.00021917,2]
[335181617,1723942238186,-500.0,0.00021917,2]
[335181618,1723942238195,-500.0,0.00021917,2]
[335181619,1723942238205,-500.0,0.00021917,2]
[335181620,1723942238214,-709.0,0.00021917,2]
[335181621,1723942238224,-500.0,0.00021917,2]
[335181622,1723942238233,-926.37,0.00021917,2]
[335181623,1723942238243,-404.52251278,0.00021917,2]
[335181624,1723942238252,-500.0,0.00021917,2]
[335181625,1723942238261,-500.0,0.00021917,2]
[335181626,1723942238271,-500.0,0.00021917,2]
[335181627,1723942238280,-500.0,0.00021917,2]
[335181628,1723942238289,-10570.91,0.00021917,2]
[335181629,1723942238298,-10570.91,0.00021917,2]
[335181630,1723942238308,-200.0,0.00021917,2]
[335181631,1723942238317,-500.0,0.00021917,2]
[335181632,1723942238400,-1153.0,0.00021917,2]
[335181633,1723942238411,-500.0,0.00021917,2]
[335181634,1723942238420,-500.0,0.00021917,2]
[335181635,1723942238429,-1526.09,0.00021917,2]
[335181636,1723942238439,-500.0,0.00021917,2]
[335181637,1723942238447,-500.0,0.00021917,2]
[335181638,1723942238457,-500.0,0.00021917,2]
[335181639,1723942238470,-500.0,0.00021917,2]
[335181640,1723942238479,-500.0,0.00021917,2]
[335181641,1723942238488,-500.0,0.00021917,2]
[335181642,1723942238497,-1429.1,0.00021917,2]
[335181643,1723942238506,-500.0,0.00021917,2]
[335181644,1723942238515,-1336.81,0.00021917,2]
[335181645,1723942238525,-500.0,0.00021917,2]
[335181646,1723942238535,-500.0,0.00021917,2]
[335181647,1723942238545,-500.0,0.00021917,2]
[335181648,1723942238558,-252.51405251,0.00021917,2]
[335181649,1723942238568,-4887.13,0.00021917,2]
[335181650,1723942238577,-500.0,0.00021917,2]
[335181651,1723942238586,-500.0,0.00021917,2]
[335181652,1723942238596,-1134.07,0.00021917,2]
[335181653,1723942238605,-500.0,0.00021917,2]
[335181654,1723942238614,-1277.17,0.00021917,2]
[335181655,1723942238623,-500.0,0.00021917,2]
[335181656,1723942238633,-500.0,0.00021917,2]
[335181657,1723942238642,-510.06,0.00021917,2]
[335181658,1723942238651,-500.0,0.00021917,2]
[335181659,1723942238661,-688.28,0.00021917,2]
[335181660,1723942238670,-1183.8,0.00021917,2]
[335181661,1723942238679,-937.5,0.00021917,2]
[335181662,1723942238688,-500.0,0.00021917,2]
[335181663,1723942238697,-500.0,0.00021917,2]
[335181664,1723942238707,-500.0,0.00021917,2]
[335181665,1723942238716,-500.0,0.00021917,2]
[335181666,1723942238726,-623.03,0.00021917,2]
[335181667,1723942238735,-500.0,0.00021917,2]
[335181668,1723942238744,-611.34,0.00021917,2]
[335181669,1723942238754,-500.0,0.00021917,2]
[335181670,1723942238763,-500.0,0.00021917,2]
[335181671,1723942238772,-500.0,0.00021917,2]
[335181672,1723942238782,-2185.17,0.00021917,2]
[335181673,1723942238791,-500.0,0.00021917,2]
[335181674,1723942238800,-687.71,0.00021917,2]
[335181675,1723942238809,-815.51,0.00021917,2]
[335181676,1723942238819,-500.0,0.00021917,2]
[335181677,1723942238828,-500.0,0.00021917,2]
[335181678,1723942238837,-839.28,0.00021917,2]
[335181679,1723942238848,-500.0,0.00021917,2]
[335181680,1723942238857,-665.13,0.00021917,2]
[335181681,1723942238866,-500.0,0.00021917,2]
[335181682,1723942238875,-613.61,0.00021917,2]
[335181683,1723942238884,-683.65,0.00021917,2]
[335181684,1723942238894,-500.0,0.00021917,2]
[335181685,1723942238903,-500.0,0.00021917,2]
[335181686,1723942238912,-500.0,0.00021917,2]
[335181687,1723942238924,-500.0,0.00021917,2]
[335181688,1723942238936,-677.96,0.00021917,2]
[335181689,1723942238947,-1577.35,0.00021917,2]
[335181690,1723942238958,-3102.84,0.00021917,2]
[335181691,1723942238969,-500.0,0.00021917,2]
[335181692,1723942238979,-2392.06,0.00021917,2]
[335181693,1723942238991,-500.0,0.00021917,2]
[335181694,1723942239002,-500.0,0.00021917,2]
[335181695,1723942239014,-672.28,0.00021917,2]
[335181696,1723942239026,-500.0,0.00021917,2]
[335181697,1723942239036,-500.0,0.00021917,2]
[335181698,1723942239046,-500.0,0.00021917,2]
[335181699,1723942239055,-500.0,0.00021917,2]
[335181700,1723942239064,-983.53,0.00021917,2]
[335181701,1723942239074,-912.44,0.00021917,2]
[335181702,1723942239083,-8336.52,0.00021917,2]
[335181703,1723942239092,-500.0,0.00021917,2]
[335181704,1723942239101,-500.0,0.00021917,2]
[335181705,1723942239110,-678.97,0.00021917,2]
[335181706,1723942239120,-500.0,0.00021917,2]
[335181707,1723942239129,-1244.41,0.00021917,2]
[335181708,1723942239138,-500.0,0.00021917,2]
[335181709,1723942239148,-500.0,0.00021917,2]
[335181710,1723942239158,-613.95,0.00021917,2]
[335181711,1723942239167,-500.0,0.00021917,2]
[335181712,1723942239176,-500.0,0.00021917,2]
[335181713,1723942239185,-848.95,0.00021917,2]
[335181714,1723942239194,-163.31519496,0.00021917,2]
[335181715,1723942239203,-1201.24,0.00021917,2]
[335181716,1723942239212,-2968.89,0.00021917,2]
[335181717,1723942239222,-901.03,0.00021917,2]
[335181718,1723942239231,-500.0,0.00021917,2]
[335181719,1723942239240,-1348.82,0.00021917,2]
[335181720,1723942239250,-500.0,0.00021917,2]
[335181721,1723942239260,-500.0,0.00021917,2]
[335181722,1723942239269,-686.45,0.00021917,2]
[335181723,1723942239278,-500.0,0.00021917,2]
[335181724,1723942239287,-906.5,0.00021917,2]
[335181725,1723942239297,-1057.53,0.00021917,2]
[335181726,1723942239307,-500.0,0.00021917,2]
[335181727,1723942239317,-500.0,0.00021917,2]
[335181728,1723942239326,-692.5,0.00021917,2]
[335181729,1723942239335,-500.0,0.00021917,2]
[335181730,1723942239345,-500.0,0.00021917,2]
[335181731,1723942239355,-500.0,0.00021917,2]
[335181732,1723942239364,-730.55,0.00021917,2]
[335181733,1723942239373,-947.08,0.00021917,2]
[335181734,1723942239383,-1014.49,0.00021917,2]
[335181735,1723942239392,-500.0,0.00021917,2]
[335181736,1723942239402,-844.6,0.00021917,2]
[335181737,1723942239411,-710.14,0.00021917,2]
[335181738,1723942239421,-500.0,0.00021917,2]
[335181739,1723942239430,-500.0,0.00021917,2]
[335181740,1723942239440,-500.0,0.00021917,2]
[335181741,1723942239450,-502.55610178,0.00021917,2]
[335181742,1723942239461,-500.0,0.00021917,2]
[335181743,1723942239546,-2000.42,0.00021917,2]
[335181744,1723942239558,-500.0,0.00021917,2]
[335181745,1723942239567,-500.0,0.00021917,2]
[335181746,1723942239578,-241.65588085,0.00021917,2]
[335181747,1723942239589,-500.0,0.00021917,2]
[335181748,1723942239598,-500.0,0.00021917,2]
[335181750,1723942239608,-170.94072366,0.00021917,2]
[335181751,1723942239617,-808.01,0.00021917,2]
[335181752,1723942239626,-500.0,0.00021917,2]
[335181753,1723942239636,-500.0,0.00021917,2]
[335181754,1723942239645,-2163.52,0.00021917,2]
[335181755,1723942239654,-732.54,0.00021917,2]
[335181757,1723942239663,-500.0,0.00021917,2]
[335181759,1723942239673,-500.0,0.00021917,2]
[335181760,1723942239683,-500.0,0.00021917,2]
[335181761,1723942239692,-2075.03,0.00021917,2]
[335181762,1723942239702,-500.0,0.00021917,2]
[335181763,1723942239712,-500.0,0.00021917,2]
[335181765,1723942239721,-500.0,0.00021917,2]
[335181766,1723942239730,-500.0,0.00021917,2]
[335181767,1723942239739,-500.0,0.00021917,2]
[335181768,1723942239749,-500.0,0.00021917,2]
[335181769,1723942239758,-500.0,0.00021918,2]
[335181770,1723942239767,-500.0,0.00021918,2]
[335181771,1723942239776,-494.29737468,0.00021918,2]
[335181772,1723942239786,-12498.73626119,0.00021943,2]
[335181773,1723942239796,-154.68290005,0.00022,2]
[335181774,1723942239805,-2903.77396404,0.00022,30]
[335181775,1723942239815,-326.0,0.00022,2]
[335181776,1723942239825,-302.45563732,0.00022,2]
[335181777,1723942239834,-516.0,0.00022,2]
[335181778,1723942239844,-17499.9053301,0.0002206,3]
[335181779,1723942239856,-4861.91121069,0.00022065,2]
[335181780,1723942239866,-12498.73626119,0.0002207,2]
[335181781,1723942239875,-150.112233,0.000221,3]
[335181782,1723942239885,-10570.91,0.00022139,2]
[335181783,1723942239895,-587.0,0.00022141,2]
[335181784,1723942239904,-500.0,0.0002218,2]
[335181785,1723942239913,-17499.9053301,0.00022181,3]
[335181786,1723942239922,-17499.9053301,0.00022186,3]
[335181787,1723942239932,-500.0,0.0002219,2]
[335181788,1723942239941,-465.54390002,0.00022191,2]
[335181789,1723942239950,-500.0,0.00022191,2]
[335181790,1723942239959,-500.0,0.00022191,2]
[335181791,1723942239968,-500.0,0.00022191,2]
[335181792,1723942239978,-500.0,0.00022191,2]
[335181793,1723942239987,-585.5555827,0.00022191,2]
[335181794,1723942239996,-500.0,0.00022191,2]
[335181795,1723942240006,-500.0,0.00022191,2]
[335181796,1723942240015,-500.0,0.00022191,2]
[335181797,1723942240025,-709.0,0.00022191,2]
[335181798,1723942240035,-500.0,0.00022191,2]
[335181799,1723942240044,-926.37,0.00022191,2]
[335181800,1723942240054,-500.0,0.00022191,2]
[335181801,1723942240063,-500.0,0.00022191,2]
[335181802,1723942240073,-511.81599252,0.00022191,2]
[335181803,1723942240082,-500.0,0.00022191,2]
[335181804,1723942240092,-200.0,0.00022191,2]
[335181805,1723942240101,-500.0,0.00022191,2]
[335181806,1723942240111,-1153.0,0.00022191,2]
[335181807,1723942240120,-500.0,0.00022191,2]
[335181808,1723942240130,-500.0,0.00022191,2]
[335181809,1723942240140,-1526.09,0.00022191,2]
[335181810,1723942240149,-500.0,0.00022191,2]
[335181811,1723942240159,-500.0,0.00022191,2]
[335181812,1723942240169,-500.0,0.00022191,2]
[335181813,1723942240178,-500.0,0.00022191,2]
[335181814,1723942240187,-500.0,0.00022191,2]
[335181815,1723942240196,-500.0,0.00022191,2]
[335181816,1723942240206,-1429.1,0.00022191,2]
[335181817,1723942240215,-556.18677956,0.00022191,2]
[335181818,1723942240225,-1336.81,0.00022191,2]
[335181819,1723942240234,-364.40249443,0.00022191,2]
[335181820,1723942240244,-500.0,0.00022191,2]
[335181821,1723942240253,-500.0,0.00022191,2]
[335181822,1723942240262,-4887.13,0.00022191,2]
[335181823,1723942240272,-500.0,0.00022191,2]
[335181824,1723942240282,-500.0,0.00022191,2]
[335181825,1723942240291,-1134.07,0.00022191,2]
[335181826,1723942240301,-500.0,0.00022191,2]
[335181827,1723942240310,-500.0,0.00022191,2]
[335181828,1723942240320,-1277.17,0.00022191,2]
[335181829,1723942240329,-500.0,0.00022191,2]
[335181830,1723942240339,-510.06,0.00022191,2]
[335181831,1723942240348,-688.28,0.00022191,2]
[335181832,1723942240358,-500.0,0.00022191,2]
[335181833,1723942240367,-1183.8,0.00022191,2]
[335181834,1723942240377,-937.5,0.00022191,2]
[335181835,1723942240387,-500.0,0.00022191,2]
[335181836,1723942240397,-500.0,0.00022191,2]
[335181837,1723942240406,-500.0,0.00022191,2]
[335181838,1723942240416,-500.0,0.00022191,2]
[335181839,1723942240426,-623.03,0.00022191,2]
[335181840,1723942240437,-500.0,0.00022191,2]
[335181841,1723942240446,-611.34,0.00022191,2]
[335181842,1723942240455,-500.0,0.00022191,2]
[335181843,1723942240468,-500.0,0.00022191,2]
[335181844,1723942240478,-500.0,0.00022191,2]
[335181845,1723942240488,-2185.17,0.00022191,2]
[335181846,1723942240497,-500.0,0.00022191,2]
[335181847,1723942240507,-687.71,0.00022191,2]
[335181848,1723942240581,-815.51,0.00022191,2]
[335181849,1723942240591,-500.0,0.00022191,2]
[335181850,1723942240601,-500.0,0.00022191,2]
[335181851,1723942240610,-839.28,0.00022191,2]
[335181852,1723942240620,-500.0,0.00022191,2]
[335181853,1723942240630,-665.13,0.00022191,2]
[335181854,1723942240639,-500.0,0.00022191,2]
[335181855,1723942240649,-613.61,0.00022191,2]
[335181856,1723942240658,-683.65,0.00022191,2]
[335181857,1723942240668,-500.0,0.00022191,2]
[335181858,1723942240677,-522.25533217,0.00022191,2]
[335181859,1723942240687,-500.0,0.00022191,2]
[335181860,1723942240697,-500.0,0.00022191,2]
[335181861,1723942240707,-677.96,0.00022191,2]
[335181862,1723942240716,-1577.35,0.00022191,2]
[335181863,1723942240726,-3102.84,0.00022191,2]
[335181864,1723942240735,-500.0,0.00022191,2]
[335181865,1723942240745,-2392.06,0.00022191,2]
[335181866,1723942240754,-500.0,0.00022191,2]
[335181867,1723942240764,-500.0,0.00022191,2]
[335181868,1723942240773,-672.28,0.00022191,2]
[335181869,1723942240782,-500.0,0.00022191,2]
[335181870,1723942240791,-500.0,0.00022191,2]
[335181871,1723942240800,-500.0,0.00022191,2]
[335181872,1723942240809,-500.0,0.00022191,2]
[335181873,1723942240819,-983.53,0.00022191,2]
[335181874,1723942240828,-912.44,0.00022191,2]
[335181875,1723942240839,-8336.52,0.00022191,2]
[335181876,1723942240848,-500.0,0.00022191,2]
[335181877,1723942240858,-500.0,0.00022191,2]
[335181878,1723942240867,-678.97,0.00022191,2]
[335181879,1723942240876,-500.0,0.00022191,2]
[335181880,1723942240886,-1244.41,0.00022191,2]
[335181881,1723942240895,-500.0,0.00022191,2]
[335181882,1723942240905,-500.0,0.00022191,2]
[335181883,1723942240914,-613.95,0.00022191,2]
[335181884,1723942240923,-500.0,0.00022191,2]
[335181885,1723942240933,-500.0,0.00022191,2]
[335181886,1723942240942,-848.95,0.00022191,2]
[335181887,1723942240951,-1058.67291176,0.00022191,2]
[335181888,1723942240968,-142.56708824,0.00022191,2]
[335181889,1723942240977,-390.09066795,0.00022191,2]
[335181946,1723942245846,-782.34,0.00021917,2]
[335181948,1723942245856,-233.35390209,0.00021917,2]
[335181950,1723942245867,-500.0,0.00021917,2]
[335181953,1723942245878,-1310.01,0.00021917,2]
[335181955,1723942245888,-500.0,0.00021917,2]
[335181957,1723942245898,-500.0,0.00021917,2]
[335181959,1723942245908,-576.91,0.00022186,3]
[335181961,1723942245918,-2502.19471608,0.00022191,2]
[335181989,1723942587762,215.003023,0.00014247,2]
[335181997,1723942640755,299.50005724,0.00014247,2]
[335182019,1723942762070,5000.0,0.00015001,2]
[335182020,1723942770747,800.0,0.00015001,2]
[335182021,1723942778892,3781.49866419,0.00015001,2]
[335182022,1723942802134,-192.71,0.00021908,120]
[335182023,1723942806670,155.0,0.00015001,2]
[335182024,1723942808605,1522.59042426,0.00015001,2]
[335182025,1723942811309,155.0,0.00015001,2]
[335182026,1723942816189,155.0,0.00015001,2]
[335182027,1723942820823,155.0,0.00015001,2]
[335182028,1723942825484,155.0,0.00015001,2]
[335182029,1723942830296,155.0,0.00015001,2]
[335182030,1723942834887,155.0,0.00015001,2]
[335182031,1723942839380,155.0,0.00015001,2]
[335182032,1723942844070,155.0,0.00015001,2]
[335182033,1723942848484,230.9332475,0.00015001,2]
[335182069,1723943043684,174.881751,0.00014247,2]
[335182074,1723943231144,-154.80649189,0.00017267,2]
[335182075,1723943231261,-530.36591607,0.00018081,2]
[335182076,1723943235095,-452.99395921,0.00018081,2]
[335182077,1723943235117,-782.32633188,0.00018105,2]
[335182078,1723943235138,-250.0,0.00018766,2]
[335182079,1723943235159,-250.0,0.00018818,2]
[335182080,1723943235180,-222.51844934,0.00018869,2]